bitfinex-derivatives/quotes_SOLF0:USTF0_20251209
["timestamp","ask_amount","ask_price","bid_price","bid_amount"]
[1765286523780,2.02813383,132.91,132.85,63.92]
[1765286523980,2.07992559,132.89,132.87,0.04892313]
[1765286524575,5.89369273,132.88,132.87,0.04892313]
[1765286525175,2.07992559,132.89,132.87,0.04892313]
[1765286525577,8.85272559,132.89,132.87,0.04892313]
[1765286526078,0.05179176,132.89,132.87,0.04892313]
[1765286528785,6.82459176,132.89,132.87,0.04892313]
[1765286528984,0.05179176,132.89,132.87,0.04892313]
[1765286531775,0.05179176,132.89,132.77,106.75104446]
[1765286531776,6.7747,132.85,132.77,106.75104446]
[1765286531989,6.7747,132.85,132.76,169.391]
[1765286532683,6.7747,132.85,132.79,6.7775]
[1765286532887,0.04784471,132.83,132.81,0.05441071]
[1765286538090,0.04784471,132.83,132.81,6.83101071]
[1765286542807,0.04784471,132.83,132.81,10.00155623]
[1765286545409,0.04784471,132.83,132.82,6.7762]
[1765286545600,6.7731,132.89,132.81,108.63805623]
[1765286545802,108.50234552,132.92,132.83,3.17054552]
[1765286545997,105.3318,132.92,132.83,67.15054552]
[1765286546402,6.7731,132.88,132.84,6.7751]
[1765286546705,0.04805041,132.87,132.85,0.05259836]
[1765286548109,0.04805041,132.87,132.85,6.82709836]
[1765286550816,0.04805041,132.87,132.86,6.7741]
[1765286552017,0.04805041,132.87,132.85,6.82719836]
[1765286553715,0.04805041,132.87,132.86,6.7741]
[1765286554812,11.52418074,132.93,132.88,6.773]
[1765286555013,5.828327,132.92,132.88,6.773]
[1765286555315,5.83085526,132.91,132.88,6.773]
[1765286555507,67.15054552,132.94,132.86,70.7536]
[1765286555818,0.05375031,132.91,132.89,0.04969808]
[1765286556118,5.81251739,132.9,132.89,0.04969808]
[1765286556315,0.05375031,132.91,132.89,0.04969808]
[1765286559121,0.05375031,132.91,132.9,6.7721]
[1765286559919,0.05375031,132.91,132.89,0.04969808]
[1765286570126,0.05375031,132.91,132.89,6.82229808]
[1765286570927,0.05375031,132.91,132.89,0.04969808]
[1765286576531,0.05375031,132.91,132.89,6.82219808]
[1765286589547,0.05375031,132.91,132.9,6.7721]
[1765286590250,7.0188217,132.98,132.91,105.3344]
[1765286590452,11.45777468,132.97,132.92,2.02791252]
[1765286590750,6.7675,132.99,132.92,2.02791252]
[1765286590950,11.45387598,132.98,132.95,6.7694]
[1765286591149,73.00673422,133.01,132.95,6.7694]
[1765286591350,73.00673422,133.01,132.97,0.05733764]
[1765286591351,0.0532809,132.99,132.97,0.05733764]
[1765286591553,18.20284644,132.98,132.97,0.05733764]
[1765286591742,18.20284644,132.98,132.9,107.37131252]
[1765286592046,13.46275896,132.97,132.93,6.7705]
[1765286592240,5.83179437,132.96,132.93,6.7705]
[1765286592550,2.02791252,132.97,132.93,6.7705]
[1765286592749,0.04967126,132.96,132.94,0.05063844]
[1765286596447,6.81867126,132.96,132.94,0.05063844]
[1765286596752,5.82887968,132.95,132.94,0.05063844]
[1765286598151,7.8567922,132.95,132.94,0.05063844]
[1765286598347,13.59493894,132.95,132.94,0.05063844]
[1765286604757,20.36443894,132.95,132.94,0.05063844]
[1765286608561,20.30667295,132.95,132.94,0.05063844]
[1765286612264,13.53717295,132.95,132.86,65.98791252]
[1765286612467,112.36829296,132.96,132.86,65.98791252]
[1765286612468,2.02791252,132.92,132.86,65.98791252]
[1765286613062,2.02791252,132.9,132.82,167.403]
[1765286613262,2.02791252,132.88,132.81,107.43931252]
[1765286613465,0.05020055,132.87,132.85,0.04964785]
[1765286614669,2.02791252,132.86,132.85,0.04964785]
[1765286615069,0.05020055,132.87,132.85,0.04964785]
[1765286615858,0.05020055,132.87,132.85,6.82414785]
[1765286616261,0.05020055,132.87,132.85,0.04964785]
[1765286619888,0.05020055,132.87,132.85,6.82424785]
[1765286620186,0.05020055,132.87,132.85,2.07756037]
[1765286620894,0.05020055,132.87,132.86,6.7741]
[1765286621092,0.05020055,132.87,132.85,0.04964785]
[1765286623694,0.05020055,132.87,132.85,6.82424785]
[1765286627397,0.05020055,132.87,132.85,0.04964785]
[1765286628892,0.05020055,132.87,132.85,6.82424785]
[1765286629093,0.05020055,132.87,132.85,0.04964785]
[1765286630199,0.05020055,132.87,132.85,6.82424785]
[1765286630501,0.05020055,132.87,132.85,0.04964785]
[1765286633008,0.05020055,132.87,132.85,6.82414785]
[1765286635798,0.05020055,132.87,132.86,6.7741]
[1765286635994,6.7715,132.92,132.86,2.02791252]
[1765286636603,8.79851252,132.93,132.88,6.773]
[1765286636902,8.79851252,132.93,132.86,2.02791252]
[1765286637203,0.05264172,132.91,132.88,2.07910519]
[1765286637403,0.05501289,132.91,132.88,2.07873838]
[1765286637706,2.02791252,132.97,132.93,6.7705]
[1765286638098,2.02791252,132.98,132.93,6.7705]
[1765286638296,11.4423908,132.97,132.91,6.7711]
[1765286638500,2.02791252,132.98,132.91,6.7711]
[1765286638704,0.05192462,132.96,132.93,0.05070809]
[1765286639602,6.82102462,132.96,132.93,0.05070809]
[1765286639806,2.02791252,132.94,132.93,0.05070809]
[1765286640000,2.02791252,132.94,132.86,2.02791252]
[1765286640196,2.02791252,132.92,132.86,2.02791252]
[1765286640799,2.02791252,132.92,132.87,6.7733]
[1765286640800,8.79911252,132.92,132.87,6.7733]
[1765286641004,0.05158389,132.91,132.88,0.0505997]
[1765286642005,6.7721,132.9,132.88,0.0505997]
[1765286642207,0.05158389,132.91,132.88,0.0505997]
[1765286642708,6.82328389,132.91,132.88,0.0505997]
[1765286643807,0.05158389,132.91,132.88,0.0505997]
[1765286644402,0.05158389,132.91,132.88,6.8236997]
[1765286649017,0.05158389,132.91,132.89,6.7725]
[1765286651819,6.98860309,133.06,132.97,105.2872]
[1765286652119,6.98860309,133.09,133.02,3.16808628]
[1765286652312,112.17980309,133.1,133.02,3.16808628]
[1765286652816,0.05357739,133.07,133.05,0.05307188]
[1765286653413,1.55357739,133.07,133.05,0.05307188]
[1765286653819,0.05357739,133.07,133.05,0.05307188]
[1765286659220,6.7614,133.12,133.06,3.16808628]
[1765286660431,6.7614,133.12,133.08,0.05373814]
[1765286664018,6.7619,133.1,133.08,0.05373814]
[1765286664424,105.1867,133.1,133.02,9.93388628]
[1765286664623,105.1867,133.1,133.02,3.16808628]
[1765286664824,6.7632,133.08,133.02,3.16808628]
[1765286665425,0.05068428,133.06,133.04,0.05722157]
[1765286677430,6.81498428,133.06,133.04,0.05722157]
[1765286681243,5.64235013,133.05,133.04,0.05722157]
[1765286684637,12.40685013,133.05,133.04,0.05722157]
[1765286687238,0.05068428,133.06,133.04,0.05722157]
[1765286687435,0.05068428,133.06,133.04,6.82202157]
[1765286689645,0.05068428,133.06,133.04,0.05722157]
[1765286690952,6.81468428,133.06,133.04,0.05722157]
[1765286692155,0.05068428,133.06,133.04,0.05722157]
[1765286693648,0.05068428,133.06,133.04,6.82212157]
[1765286694246,0.05068428,133.06,133.05,6.7645]
[1765286694852,6.7623,133.1,133.05,6.7645]
[1765286695049,11.14764059,133.09,133.06,6.7637]
[1765286695249,6.7623,133.1,133.06,6.7637]
[1765286695454,11.16133458,133.09,133.06,6.7637]
[1765286695662,6.7623,133.1,133.06,6.7637]
[1765286695962,11.16133458,133.09,133.07,0.05463516]
[1765286696156,6.7623,133.1,133.07,0.05463516]
[1765286696357,11.18092772,133.09,133.07,0.05463516]
[1765286696556,6.7623,133.1,133.07,0.05463516]
[1765286696862,11.18092772,133.09,133.07,0.05463516]
[1765286697063,6.7623,133.1,133.07,0.05463516]
[1765286697258,11.1809288,133.09,133.07,0.05463516]
[1765286697456,6.7623,133.1,133.07,0.05463516]
[1765286697660,11.13063878,133.09,133.07,0.05463516]
[1765286697963,6.7623,133.1,133.07,0.05463516]
[1765286698163,11.13063872,133.09,133.07,0.05463516]
[1765286698363,6.7623,133.1,133.07,0.05463516]
[1765286698567,11.12948676,133.09,133.07,0.05463516]
[1765286698765,6.7623,133.1,133.07,0.05463516]
[1765286698965,11.12948679,133.09,133.07,0.05463516]
[1765286699167,6.7623,133.1,133.07,0.05463516]
[1765286699367,11.12894746,133.09,133.07,0.05463516]
[1765286699565,6.7623,133.1,133.07,0.05463516]
[1765286699866,11.12825055,133.09,133.07,0.05463516]
[1765286700062,6.7623,133.1,133.07,0.05463516]
[1765286700264,11.12825055,133.09,133.07,0.05463516]
[1765286700467,6.7623,133.1,133.07,0.05463516]
[1765286700765,6.7614,133.11,133.07,6.81803516]
[1765286700961,5.67650594,133.1,133.07,6.81803516]
[1765286701158,3.16808628,133.1,133.07,0.05463516]
[1765286701465,5.67585861,133.09,133.07,0.05463516]
[1765286701660,10.13480877,133.12,133.07,0.05463516]
[1765286701968,11.11182177,133.11,133.07,0.05463516]
[1765286702171,14.27990805,133.1,133.07,0.05463516]
[1765286702371,11.11182177,133.09,133.07,0.05463516]
[1765286702667,5.67572539,133.08,133.07,0.05463516]
[1765286706565,6.764,133.06,133.01,6.7661]
[1765286707774,0.05573895,133.05,133.02,0.05740415]
[1765286708873,6.82023895,133.05,133.02,0.05740415]
[1765286709069,0.05573895,133.05,133.02,0.05740415]
[1765286711481,6.82023895,133.05,133.02,0.05740415]
[1765286714682,0.05573895,133.05,133.02,6.82340415]
[1765286714885,0.05573895,133.05,133.02,0.05740415]
[1765286715984,0.05573895,133.05,133.03,6.7655]
[1765286716890,0.05573895,133.05,133.04,6.765]
[1765286718883,0.05573895,133.05,133.02,0.05740415]
[1765286719080,2.07973311,133.05,133.02,0.05740415]
[1765286719689,0.05573895,133.05,133.02,0.05740415]
[1765286720086,0.05573895,133.05,133.02,6.82340415]
[1765286720387,0.05573895,133.05,133.02,0.05740415]
[1765286721493,6.82043895,133.05,133.02,0.05740415]
[1765286723392,0.05573895,133.05,133.02,6.82330415]
[1765286725594,0.05573895,133.05,133.03,6.7654]
[1765286733998,0.05573895,133.05,133.04,2.02399416]
[1765286734186,8.78579416,133.11,133.06,6.7639]
[1765286734391,11.43233639,133.1,133.06,6.7639]
[1765286734592,11.43233639,133.09,133.06,6.7639]
[1765286734791,8.78579416,133.11,133.06,6.7639]
[1765286734994,11.43145461,133.1,133.06,6.7639]
[1765286735194,13.72752249,133.13,133.07,0.05263503]
[1765286735502,11.4310935,133.12,133.09,0.04882277]
[1765286735700,11.4310935,133.11,133.09,0.04882277]
[1765286735902,8.78479416,133.13,133.09,0.04882277]
[1765286736104,11.43093266,133.12,133.09,0.04882277]
[1765286736300,5.72769762,133.11,133.09,0.04882277]
[1765286736496,8.78479416,133.13,133.09,0.04882277]
[1765286736693,11.39264277,133.12,133.09,6.81122277]
[1765286736889,8.78479416,133.13,133.09,6.81122277]
[1765286736890,5.72562323,133.11,133.09,6.81122277]
[1765286737097,8.78479416,133.13,133.09,6.81122277]
[1765286737301,11.39105539,133.12,133.09,6.81122277]
[1765286737503,8.78479416,133.13,133.09,6.81122277]
[1765286737701,11.38891744,133.12,133.09,6.81122277]
[1765286737901,8.78479416,133.13,133.09,6.81122277]
[1765286738103,11.38891744,133.12,133.09,6.81122277]
[1765286738405,8.78479416,133.13,133.09,6.81122277]
[1765286738606,11.38577924,133.12,133.09,6.81122277]
[1765286738806,8.78479416,133.13,133.09,6.81122277]
[1765286739105,11.38577924,133.12,133.09,6.81122277]
[1765286739303,8.78479416,133.13,133.09,6.81122277]
[1765286739495,11.38296517,133.12,133.09,6.81122277]
[1765286739795,8.78479416,133.13,133.09,6.81122277]
[1765286739996,11.38296517,133.12,133.09,6.81122277]
[1765286740196,8.78479416,133.13,133.09,6.81122277]
[1765286740501,11.38165056,133.12,133.09,6.81122277]
[1765286740704,8.78479416,133.13,133.09,6.81122277]
[1765286740902,11.37969264,133.12,133.09,6.81122277]
[1765286741101,8.78479416,133.13,133.09,6.81122277]
[1765286741300,5.71814784,133.12,133.09,6.81122277]
[1765286741503,8.78479416,133.13,133.09,6.81122277]
[1765286741804,5.71796041,133.12,133.09,6.81122277]
[1765286741992,6.7608,133.13,133.09,6.81122277]
[1765286742197,5.71704955,133.12,133.09,6.81122277]
[1765286742402,2.02399416,133.13,133.1,6.7617]
[1765286743713,6.7599,133.14,133.11,6.7613]
[1765286744006,11.37400444,133.13,133.09,0.04882277]
[1765286744209,6.7604,133.13,133.09,6.81082277]
[1765286744398,176.00852249,133.16,133.09,0.04882277]
[1765286744598,2.02399416,133.13,133.09,0.04882277]
[1765286745513,8.78469416,133.13,133.09,6.81082277]
[1765286746503,70.86672249,133.16,133.1,6.7619]
[1765286746717,2.02399416,133.14,133.12,0.05444899]
[1765286746909,11.3687585,133.13,133.12,0.05444899]
[1765286747112,8.99071665,133.17,133.12,0.05444899]
[1765286747413,11.36684148,133.16,133.12,0.05444899]
[1765286747608,5.71213884,133.15,133.12,0.05444899]
[1765286747814,2.02399416,133.15,133.12,0.05444899]
[1765286748315,2.02399416,133.13,133.12,0.05444899]
[1765286748515,8.78389416,133.15,133.12,0.05444899]
[1765286748908,2.02399416,133.15,133.12,0.05444899]
[1765286749912,2.02399416,133.17,133.13,6.7603]
[1765286750108,2.02399416,133.17,133.14,0.05609846]
[1765286751514,8.78239416,133.17,133.14,0.05609846]
[1765286752012,6.7579,133.18,133.14,6.81579846]
[1765286752219,5.70237509,133.17,133.14,6.81579846]
[1765286752406,2.02399416,133.18,133.14,0.05609846]
[1765286752612,2.02399416,133.18,133.15,6.7594]
[1765286752808,65.90399416,133.2,133.14,0.05609846]
[1765286753116,65.90399416,133.2,133.16,6.7584]
[1765286753316,72.66079416,133.2,133.17,0.05570214]
[1765286753609,8.78079416,133.2,133.17,6.81390214]
[1765286753816,2.02399416,133.2,133.17,6.81390214]
[1765286754009,70.82672249,133.24,133.17,0.05570214]
[1765286754225,11.33450773,133.23,133.19,6.757]
[1765286754409,8.77839416,133.25,133.2,0.05121392]
[1765286754611,2.02399416,133.25,133.2,0.05121392]
[1765286754818,6.7551,133.24,133.2,0.05121392]
[1765286755212,105.0758,133.24,133.2,0.05121392]
[1765286755520,2.02399416,133.21,133.2,0.05121392]
[1765286756216,6.7562,133.22,133.2,0.05121392]
[1765286756615,8.09410901,133.21,133.2,0.05121392]
[1765286757420,2.02399416,133.21,133.2,0.05121392]
[1765286757718,3.52399416,133.21,133.12,65.88399416]
[1765286757918,2.02399416,133.18,133.13,6.7601]
[1765286758820,0.05145307,133.17,133.14,0.05614747]
[1765286760223,6.81005307,133.17,133.14,0.05614747]
[1765286760634,0.05145307,133.17,133.14,0.05614747]
[1765286760922,2.02399416,133.16,133.14,0.05614747]
[1765286761827,0.05145307,133.17,133.14,0.05614747]
[1765286762215,0.05145307,133.17,133.14,6.81584747]
[1765286764221,8.78309416,133.16,133.14,0.05614747]
[1765286765027,2.02399416,133.16,133.14,0.05614747]
[1765286765833,6.97021776,133.24,133.15,107.16769416]
[1765286766021,6.08572381,133.23,133.15,65.86399416]
[1765286766220,6.08572381,133.22,133.15,63.84]
[1765286766421,105.0689,133.25,133.15,65.86399416]
[1765286766621,6.756,133.22,133.17,6.7582]
[1765286766822,2.02399416,133.23,133.17,2.02399416]
[1765286767019,2.02399416,133.25,133.19,0.04881926]
[1765286767216,5.89822464,133.24,133.21,0.0573076]
[1765286767423,2.02399416,133.25,133.21,0.0573076]
[1765286767731,6.7549,133.24,133.21,0.0573076]
[1765286768130,8.77889416,133.24,133.21,0.0573076]
[1765286768518,6.7555,133.23,133.21,0.0573076]
[1765286768832,2.02399416,133.22,133.21,0.0573076]
[1765286770622,7.92047565,133.22,133.21,0.0573076]
[1765286770824,6.7566,133.21,133.14,6.7595]
[1765286771020,6.7566,133.21,133.15,6.7592]
[1765286771226,2.02399416,133.2,133.15,6.7592]
[1765286771735,0.04784146,133.19,133.16,0.05356515]
[1765286773141,0.04784146,133.19,133.16,6.81236515]
[1765286773640,3.15632992,133.18,133.16,0.05356515]
[1765286774025,9.91432992,133.18,133.16,0.05356515]
[1765286774340,6.758,133.18,133.16,0.05356515]
[1765286777432,0.04784146,133.19,133.16,0.05356515]
[1765286780639,0.04784146,133.19,133.17,6.7583]
[1765286782735,105.061,133.26,133.16,105.18956515]
[1765286783043,14.78573679,133.25,133.14,168.9914]
[1765286783242,11.62940687,133.24,133.14,168.9914]
[1765286783447,5.90996586,133.23,133.15,108.30242992]
[1765286783740,0.02213241,133.2,133.18,0.05234987]
[1765286784648,0.02213241,133.2,133.19,6.7573]
[1765286785547,0.02213241,133.2,133.18,0.05234987]
[1765286788552,0.02213241,133.2,133.18,6.81014987]
[1765286790047,0.02213241,133.2,133.18,70.63014987]
[1765286791643,0.02213241,133.2,133.19,6.7573]
[1765286792033,0.02213241,133.2,133.18,63.87234987]
[1765286792337,0.02213241,133.2,133.18,0.05234987]
[1765286797451,6.77893241,133.2,133.18,0.05234987]
[1765286797754,11.4893098,133.19,133.08,3.15632992]
[1765286797955,11.4893098,133.18,133.1,105.1858]
[1765286798142,3.15632992,133.2,133.1,105.1858]
[1765286798343,11.49037775,133.19,133.1,105.1858]
[1765286798550,18.24867775,133.18,133.13,6.7599]
[1765286798754,0.04777837,133.17,133.14,0.04933582]
[1765286799148,12.59495909,133.16,133.14,0.04933582]
[1765286799347,6.759,133.16,133.14,0.04933582]
[1765286800643,0.04777837,133.17,133.14,0.04933582]
[1765286800844,5.83521124,133.16,133.14,0.04933582]
[1765286801043,3.15632992,133.16,133.14,0.04933582]
[1765286801244,5.83566112,133.15,133.14,0.04933582]
[1765286801443,3.15632992,133.16,133.14,0.04933582]
[1765286801652,0.04777837,133.17,133.14,0.04933582]
[1765286801854,21.40225677,133.16,133.14,0.04933582]
[1765286802148,9.91532992,133.16,133.14,0.04933582]
[1765286802350,6.759,133.16,133.14,0.04933582]
[1765286802652,5.83291402,133.15,133.14,0.04933582]
[1765286802838,6.759,133.16,133.14,0.04933582]
[1765286803960,0.04777837,133.17,133.14,0.04933582]
[1765286804641,5.83191531,133.16,133.14,0.04933582]
[1765286804849,5.83191531,133.15,133.14,0.04933582]
[1765286805450,5.83191531,133.15,133.1,6.7618]
[1765286805653,3.15632992,133.16,133.1,6.7618]
[1765286805855,5.83111307,133.15,133.1,6.7618]
[1765286806154,3.15632992,133.16,133.1,6.7618]
[1765286806458,0.04742011,133.14,133.12,0.04885739]
[1765286807965,0.04742011,133.14,133.12,6.80965739]
[1765286808259,0.04742011,133.14,133.12,0.04885739]
[1765286811453,6.80732011,133.14,133.12,0.04885739]
[1765286813353,0.04742011,133.14,133.12,6.80935739]
[1765286814273,0.04742011,133.14,133.13,6.7604]
[1765286814764,0.04742011,133.14,133.12,0.04885739]
[1765286815760,6.80732011,133.14,133.12,0.04885739]
[1765286816261,6.7604,133.13,133.12,0.04885739]
[1765286820057,0.04742011,133.14,133.12,0.04885739]
[1765286821161,3.20375003,133.14,133.12,0.04885739]
[1765286821353,3.20375003,133.14,133.02,39.58380054]
[1765286821354,11.59988764,133.13,133.04,63.86]
[1765286821553,9.02457567,133.12,133.04,63.86]
[1765286821752,6.7614,133.11,133.06,6.7635]
[1765286822455,0.04884472,133.1,133.07,6.81374856]
[1765286824866,6.81104472,133.1,133.07,0.05054856]
[1765286829466,6.81104472,133.1,133.07,6.81394856]
[1765286829861,6.81104472,133.1,133.07,0.05054856]
[1765286829862,0.04884472,133.1,133.07,0.05054856]
[1765286830258,0.04884472,133.1,133.08,6.7628]
[1765286831467,0.04884472,133.1,133.07,0.05054856]
[1765286831468,0.04884472,133.1,133.07,6.81394856]
[1765286831968,6.81084472,133.1,133.07,6.81394856]
[1765286832168,0.04884472,133.1,133.07,0.05054856]
[1765286832465,6.7629,133.08,133.07,0.05054856]
[1765286835973,6.81114472,133.1,133.07,0.05054856]
[1765286836961,6.7625,133.09,133.07,0.05054856]
[1765286841966,0.04884472,133.1,133.07,0.05054856]
[1765286843368,2.07226836,133.1,133.07,0.05054856]
[1765286843975,6.7624,133.09,133.07,0.05054856]
[1765286844668,0.04884472,133.1,133.07,6.81394856]
[1765286848083,2.07226836,133.1,133.07,0.05054856]
[1765286849477,6.7625,133.09,133.07,0.05054856]
[1765286850075,6.7629,133.08,133.07,0.05054856]
[1765286850281,8.78632364,133.08,133.07,0.05054856]
[1765286852178,6.7649,133.05,132.98,105.2781]
[1765286852480,2.02342364,133.05,132.97,107.30982364]
[1765286853185,0.05279979,133.02,133.0,0.05225371]
[1765286853383,0.05279979,133.02,133.0,6.81885371]
[1765286858385,0.05279979,133.02,133.01,6.7665]
[1765286863094,6.7644,133.06,133.03,6.7654]
[1765286863295,2.02342364,133.08,133.03,6.7654]
[1765286863496,11.70816882,133.07,133.03,6.7654]
[1765286863698,5.89897594,133.06,133.03,6.7654]
[1765286863997,0.05023336,133.06,133.03,6.82164184]
[1765286865994,5.90112866,133.05,133.03,0.05624184]
[1765286866193,6.81423336,133.06,133.03,0.05624184]
[1765286866394,5.900928,133.05,133.03,0.05624184]
[1765286866588,8.837657,133.06,133.03,0.05624184]
[1765286866798,5.900928,133.05,133.03,0.05624184]
[1765286866989,8.837657,133.06,133.03,0.05624184]
[1765286867288,5.90103041,133.05,133.03,0.05624184]
[1765286867595,8.837657,133.06,133.03,0.05624184]
[1765286867796,5.90097486,133.05,133.03,0.05624184]
[1765286867997,8.837657,133.06,133.03,0.05624184]
[1765286868193,5.90080963,133.05,133.03,0.05624184]
[1765286868397,8.837657,133.06,133.03,0.05624184]
[1765286868601,5.90080963,133.05,133.03,0.05624184]
[1765286868798,8.837657,133.06,133.03,0.05624184]
[1765286868998,5.90080963,133.05,133.03,0.05624184]
[1765286869199,8.837657,133.06,133.03,0.05624184]
[1765286869393,5.90069962,133.05,133.03,0.05624184]
[1765286869698,6.7645,133.05,133.03,0.05624184]
[1765286870198,6.765,133.04,133.03,0.05624184]
[1765286870598,20.49683908,133.04,133.03,0.05624184]
[1765286876101,13.73183908,133.04,132.98,2.02342364]
[1765286876300,5.8992878,133.03,132.98,2.02342364]
[1765286876500,2.02342364,133.04,132.98,2.02342364]
[1765286876700,5.89649042,133.03,132.98,2.02342364]
[1765286876905,0.05513718,133.02,132.99,0.05084675]
[1765286877504,6.82133718,133.02,132.99,0.05084675]
[1765286879101,6.82133718,133.02,132.99,6.81834675]
[1765286880514,0.05513718,133.02,133.0,8.79032364]
[1765286882315,6.82123718,133.02,132.99,0.05084675]
[1765286884718,0.05513718,133.02,132.99,6.81824675]
[1765286885016,0.05513718,133.02,132.99,0.05084675]
[1765286885414,5.89552557,133.01,132.99,0.05084675]
[1765286885609,0.05513718,133.02,132.99,0.05084675]
[1765286885810,6.767,133.0,132.99,0.05084675]
[1765286886110,18.92771024,133.0,132.99,0.05084675]
[1765286886311,13.03353203,133.0,132.99,0.05084675]
[1765286888119,18.92189158,133.0,132.99,0.05084675]
[1765286890413,182.84529158,133.0,132.93,6.7703]
[1765286890620,2.02342364,132.96,132.91,63.92]
[1765286890821,6.26653203,132.95,132.91,63.92]
[1765286891119,8.79292364,132.96,132.92,6.7709]
[1765286891511,6.30686131,132.95,132.93,0.05020113]
[1765286891717,0.05444164,132.95,132.93,0.05020113]
[1765286893422,0.05444164,132.95,132.93,6.82060113]
[1765286893912,0.05444164,132.95,132.94,6.7701]
[1765286899026,63.92,133.0,132.96,6.769]
[1765286899227,6.24600007,132.99,132.96,6.769]
[1765286899528,63.92,133.0,132.96,6.769]
[1765286899720,6.24523203,132.99,132.96,6.769]
[1765286899920,63.92,133.0,132.96,6.769]
[1765286900221,6.30280276,132.99,132.97,0.05371749]
[1765286900426,0.05757073,132.99,132.97,0.05371749]
[1765286902622,0.05757073,132.99,132.98,6.768]
[1765286902823,6.30213094,132.99,132.98,6.768]
[1765286903728,0.05757073,132.99,132.98,6.768]
[1765286905731,0.05757073,132.99,132.97,0.05371749]
[1765286906223,6.82517073,132.99,132.97,0.05371749]
[1765286911033,0.05757073,132.99,132.97,0.05371749]
[1765286911833,0.05757073,132.99,132.97,6.82211749]
[1765286914130,0.05757073,132.99,132.97,0.05371749]
[1765286914336,18.97016264,132.98,132.97,0.05371749]
[1765286914528,12.20216264,132.98,132.91,63.92]
[1765286914734,6.769,132.96,132.92,6.7711]
[1765286914929,6.30632397,132.95,132.92,6.7711]
[1765286915238,3.16610718,132.97,132.91,63.92]
[1765286915548,0.04882972,132.95,132.93,0.05271926]
[1765286916425,6.81842972,132.95,132.93,0.05271926]
[1765286917536,0.04882972,132.95,132.93,0.05271926]
[1765286920243,0.04882972,132.95,132.93,6.82321926]
[1765286921746,0.04882972,132.95,132.94,6.7701]
[1765286922044,6.33603378,132.95,132.94,6.7701]
[1765286924940,6.33603378,132.95,132.93,0.05271926]
[1765286925141,0.04882972,132.95,132.93,0.05271926]
[1765286926935,0.04882972,132.95,132.93,6.82321926]
[1765286933851,0.04882972,132.95,132.94,6.7701]
[1765286934056,0.04882972,132.95,132.93,0.05271926]
[1765286934953,0.04882972,132.95,132.94,6.7701]
[1765286938753,6.98793808,133.02,132.97,6.7684]
[1765286938953,11.93367203,133.01,132.97,6.7684]
[1765286939261,11.93367203,133.0,132.97,6.7684]
[1765286939455,11.93367203,132.99,132.97,6.7684]
[1765286939656,6.98793808,133.02,132.97,6.7684]
[1765286939863,11.98616852,133.01,132.98,0.04787982]
[1765286940061,18.70018835,133.0,132.98,0.04787982]
[1765286940263,11.93288835,132.99,132.98,0.04787982]
[1765286940963,18.70038835,132.99,132.98,0.04787982]
[1765286944371,20.20038835,132.99,132.98,0.04787982]
[1765286945574,18.70038835,132.99,132.98,0.04787982]
[1765286945968,25.68832643,132.99,132.98,0.04787982]
[1765286946773,18.70038835,132.99,132.98,0.04787982]
[1765286947480,11.93288835,132.99,132.98,0.04787982]
[1765286948385,5.88847524,132.99,132.98,0.04787982]
[1765286958183,11.6969676,132.99,132.98,0.04787982]
[1765286958486,5.88847524,132.99,132.98,0.04787982]
[1765286959186,11.69725514,132.99,132.98,0.04787982]
[1765286960385,11.69693057,132.99,132.98,0.04787982]
[1765286961287,5.88847524,132.99,132.98,0.04787982]
[1765286969385,5.88847524,132.99,132.98,6.81587982]
[1765286969583,0.05328017,133.01,132.98,6.81587982]
[1765286969794,11.56353749,133.0,132.98,6.81587982]
[1765286970097,0.05328017,133.01,132.98,6.81587982]
[1765286970288,11.54413054,133.0,132.98,6.81587982]
[1765286970590,0.05328017,133.01,132.98,6.81587982]
[1765286970891,11.53904384,133.0,132.98,6.81587982]
[1765286971087,0.05328017,133.01,132.98,6.81587982]
[1765286971291,11.53941748,133.0,132.98,6.81587982]
[1765286971492,0.05328017,133.01,132.98,6.81587982]
[1765286971697,11.539745,133.0,132.98,6.81587982]
[1765286971994,0.05328017,133.01,132.98,6.81587982]
[1765286972190,11.54044516,133.0,132.98,6.81587982]
[1765286972492,0.05328017,133.01,132.98,6.81587982]
[1765286972695,11.54107826,133.0,132.98,6.81587982]
[1765286972894,0.05328017,133.01,132.98,6.81587982]
[1765286973193,11.54107826,133.0,132.98,6.81587982]
[1765286973401,0.05328017,133.01,132.98,2.0736069]
[1765286974487,0.05328017,133.01,133.0,6.767]
[1765286977486,6.7646,133.05,133.02,6.7659]
[1765286977695,5.81457323,133.04,133.02,6.7659]
[1765286977892,6.7646,133.05,133.02,6.7659]
[1765286978092,5.8146608,133.04,133.02,6.7659]
[1765286978292,8.78972708,133.06,133.02,6.7659]
[1765286978486,5.86711223,133.05,133.03,6.81399687]
[1765286978689,0.05322281,133.05,133.03,0.04859687]
[1765286979594,0.05322281,133.05,133.04,6.765]